bitfinex/quotes_BTCUSD_20230904
["timestamp","ask_amount","ask_price","bid_price","bid_amount"]
[1693849447710,0.004,25890.0,25889.0,1.41462883]
[1693849447888,0.004,25890.0,25889.0,1.41390883]
[1693849448079,0.194,25890.0,25889.0,1.41360883]
[1693849448286,0.194,25890.0,25889.0,1.41354883]
[1693849448487,0.194,25890.0,25889.0,1.41234883]
[1693849448729,0.194,25890.0,25889.0,1.41360883]
[1693849448936,0.194,25890.0,25889.0,1.41336883]
[1693849449088,0.194,25890.0,25889.0,1.41312883]
[1693849449290,0.194,25890.0,25889.0,1.41360883]
[1693849449489,0.194,25890.0,25889.0,1.41210883]
[1693849449747,0.194,25890.0,25889.0,1.41204883]
[1693849449916,0.194,25890.0,25889.0,1.41078883]
[1693849450082,0.194,25890.0,25889.0,1.40874883]
[1693849450283,0.194,25890.0,25889.0,1.41054883]
[1693849450483,0.194,25890.0,25889.0,1.40886883]
[1693849450756,0.194,25890.0,25889.0,1.40892883]
[1693849450887,0.194,25890.0,25889.0,1.40886883]
[1693849451308,0.194,25890.0,25889.0,1.40880883]
[1693849451511,0.194,25890.0,25889.0,1.40676883]
[1693849451733,0.194,25890.0,25889.0,1.40304883]
[1693849451950,0.194,25890.0,25889.0,1.40208883]
[1693849452153,0.194,25890.0,25889.0,1.40118883]
[1693849452491,0.194,25890.0,25889.0,1.40124883]
[1693849452665,0.194,25890.0,25889.0,1.389077]
[1693849452870,0.194,25890.0,25889.0,1.384277]
[1693849453031,0.194,25890.0,25889.0,1.382537]
[1693849453458,0.194,25890.0,25889.0,1.382477]
[1693849453796,0.194,25890.0,25889.0,1.64240176]
[1693849454005,0.194,25890.0,25889.0,1.64348176]
[1693849454330,0.194,25890.0,25889.0,1.64282176]
[1693849454448,0.194,25890.0,25889.0,1.64300176]
[1693849454651,0.194,25890.0,25889.0,1.64360176]
[1693849454969,0.194,25890.0,25889.0,1.64558176]
[1693849455172,0.194,25890.0,25889.0,1.64588176]
[1693849455383,0.194,25890.0,25889.0,1.64612176]
[1693849455580,0.194,25890.0,25889.0,1.63196176]
[1693849455809,0.194,25890.0,25889.0,1.62878176]
[1693849455959,0.194,25890.0,25889.0,1.62848176]
[1693849456181,0.194,25890.0,25889.0,1.62860176]
[1693849456383,0.194,25890.0,25889.0,1.62884176]
[1693849456597,0.194,25890.0,25889.0,1.54128176]
[1693849457208,0.194,25890.0,25889.0,1.29978603]
[1693849457989,0.41163407,25890.0,25889.0,1.29978603]
[1693849458194,0.41163407,25890.0,25889.0,0.575756]
[1693849458403,0.41163407,25890.0,25889.0,0.28020756]
[1693849458404,0.51933407,25890.0,25889.0,0.28020756]
[1693849458606,1.846698,25890.0,25889.0,0.23398262]
[1693849458811,2.06096847,25890.0,25889.0,0.28026152]
[1693849459199,2.05896847,25890.0,25889.0,0.25526152]
[1693849459391,2.05696847,25890.0,25889.0,0.13875064]
[1693849459593,2.83146747,25890.0,25889.0,0.25626234]
[1693849459804,2.83246747,25890.0,25889.0,0.18075064]
[1693849460001,2.82946747,25890.0,25889.0,0.13875064]
[1693849460198,2.82946747,25890.0,25889.0,0.2312314]
[1693849460520,2.05896847,25890.0,25889.0,0.10948076]
[1693849463220,2.05896847,25890.0,25889.0,0.017]
[1693849467657,2.05796847,25890.0,25889.0,0.009]
[1693849467854,2.05696847,25890.0,25887.0,0.3084884]
[1693849468031,0.1077,25888.0,25887.0,0.3084884]
[1693849468239,0.1077,25888.0,25887.0,0.16973776]
[1693849468842,0.1077,25888.0,25887.0,0.18673776]
[1693849468996,0.1077,25888.0,25887.0,0.20473776]
[1693849469202,0.1077,25888.0,25887.0,0.18773776]
[1693849469435,0.1077,25888.0,25887.0,0.16973776]
[1693849469627,1.15019129,25888.0,25887.0,0.10948076]
[1693849470777,1.15219129,25888.0,25887.0,0.12748076]
[1693849471576,1.92474929,25888.0,25887.0,0.12748076]
[1693849472133,1.15219129,25888.0,25887.0,0.12748076]
[1693849475184,0.37963329,25888.0,25887.0,0.20473876]
[1693849482951,0.37963329,25888.0,25887.0,0.3434894]
[1693849483172,0.37963329,25888.0,25887.0,0.20473876]
[1693849484545,0.37963329,25888.0,25887.0,0.3434894]
[1693849485183,0.37963329,25888.0,25887.0,0.25100864]
[1693849486035,0.004,25888.0,25887.0,0.45175662]
[1693849486248,0.004,25888.0,25887.0,0.53053662]
[1693849486477,0.004,25888.0,25887.0,0.52951662]
[1693849486882,0.004,25888.0,25887.0,0.52957662]
[1693849487094,0.004,25888.0,25887.0,0.52927662]
[1693849487301,0.004,25888.0,25887.0,0.76018418]
[1693849487522,0.004,25888.0,25887.0,0.75742418]
[1693849487728,0.004,25888.0,25887.0,0.45175662]
[1693849487907,0.004,25888.0,25887.0,0.68296418]
[1693849488963,0.1117,25888.0,25887.0,0.68296418]
[1693849490375,0.1117,25888.0,25887.0,0.49798156]
[1693849490946,0.36701313,25888.0,25887.0,0.42062256]
[1693849491153,1.13957113,25888.0,25887.0,0.17338888]
[1693849491350,2.68468713,25888.0,25887.0,0.26573245]
[1693849491558,2.68468713,25888.0,25887.0,0.12724257]
[1693849492266,2.68268713,25888.0,25887.0,0.10924257]
[1693849492706,2.68368713,25888.0,25887.0,0.11924257]
[1693849493065,2.68268713,25888.0,25887.0,0.10924257]
[1693849493386,2.68368713,25888.0,25887.0,0.25773245]
[1693849493585,2.68168713,25888.0,25887.0,0.24083345]
[1693849493795,2.68268713,25888.0,25887.0,0.24883345]
[1693849494148,2.68068713,25888.0,25887.0,0.23083345]
[1693849494351,2.68168713,25888.0,25887.0,0.23083345]
[1693849495660,2.68268713,25888.0,25887.0,0.23983345]
[1693849496204,2.68168713,25888.0,25887.0,0.13848988]
[1693849496627,2.68168713,25888.0,25887.0,0.13948988]
[1693849499430,2.68168713,25888.0,25887.0,0.32413401]
[1693849499843,2.426374,25888.0,25887.0,0.13948988]
[1693849500053,2.426374,25888.0,25887.0,0.18564413]
[1693849500234,1.653816,25888.0,25887.0,0.18564413]
[1693849500468,0.881258,25888.0,25887.0,0.18564413]
[1693849500678,0.1087,25888.0,25887.0,0.30946556]
[1693849500881,0.001,25888.0,25887.0,0.38672356]
[1693849501082,0.001,25888.0,25887.0,0.321634]
[1693849501290,0.001,25888.0,25887.0,0.335314]
[1693849501500,0.001,25888.0,25887.0,0.57341583]
[1693849501707,0.001,25888.0,25887.0,0.57857583]
[1693849501885,0.001,25888.0,25887.0,0.337714]
[1693849502094,0.001,25888.0,25887.0,0.337354]
[1693849502317,0.001,25888.0,25887.0,0.61431876]
[1693849502519,0.001,25888.0,25887.0,0.61359876]
[1693849502672,0.001,25888.0,25887.0,0.61317876]
[1693849502874,0.001,25888.0,25887.0,0.61269876]
[1693849503076,0.001,25888.0,25887.0,0.84797866]
[1693849503279,0.001,25888.0,25887.0,0.60627876]
[1693849503499,0.001,25888.0,25887.0,0.60573876]
[1693849503701,0.001,25888.0,25887.0,0.60327876]
[1693849503903,0.001,25888.0,25887.0,0.303754]
[1693849504173,0.001,25888.0,25887.0,0.001]
[1693849504174,1.653816,25888.0,25887.0,0.001]
[1693849504381,0.1087,25888.0,25887.0,0.078258]
[1693849504528,0.001,25888.0,25887.0,0.155516]
[1693849506038,0.001,25888.0,25887.0,0.221276]
[1693849506235,0.001,25888.0,25887.0,0.300454]
[1693849506442,0.001,25888.0,25887.0,0.298234]
[1693849506647,0.001,25888.0,25887.0,0.306334]
[1693849506871,0.001,25888.0,25887.0,0.303934]
[1693849507077,0.001,25888.0,25887.0,0.304654]
[1693849507477,0.001,25888.0,25887.0,0.312214]
[1693849507678,0.001,25888.0,25887.0,0.311734]
[1693849507890,0.001,25888.0,25887.0,0.328774]
[1693849508056,0.001,25888.0,25887.0,0.326014]
[1693849508394,0.001,25888.0,25887.0,0.319714]
[1693849508598,0.001,25888.0,25887.0,0.317134]
[1693849508798,0.001,25888.0,25887.0,0.316054]
[1693849508979,0.001,25888.0,25887.0,0.315814]
[1693849509201,0.001,25888.0,25887.0,0.315514]
[1693849509415,0.001,25888.0,25887.0,0.315334]
[1693849509608,0.001,25888.0,25887.0,0.314974]
[1693849509832,0.001,25888.0,25887.0,0.314554]
[1693849510030,0.001,25888.0,25887.0,0.314434]
[1693849510261,0.001,25888.0,25887.0,0.314254]
[1693849510488,0.001,25888.0,25887.0,0.313954]
[1693849510797,0.001,25888.0,25887.0,0.313534]
[1693849510934,0.001,25888.0,25887.0,0.313294]
[1693849511136,0.001,25888.0,25887.0,0.313354]
[1693849511336,0.001,25888.0,25887.0,0.313234]
[1693849511560,0.001,25888.0,25887.0,0.312814]
[1693849511833,0.001,25888.0,25887.0,0.312574]
[1693849512040,0.001,25888.0,25887.0,0.311014]
[1693849512195,0.001,25888.0,25887.0,0.310774]
[1693849512395,0.001,25888.0,25887.0,0.310414]
[1693849512603,0.001,25888.0,25887.0,0.310234]
[1693849512865,0.001,25888.0,25887.0,0.310054]
[1693849513037,0.001,25888.0,25887.0,0.309814]
[1693849513265,0.001,25888.0,25887.0,0.54150363]
[1693849513417,0.001,25888.0,25887.0,0.54804363]
[1693849513628,0.001,25888.0,25887.0,0.55560363]
[1693849513829,0.001,25888.0,25887.0,0.55476363]
[1693849514031,0.001,25888.0,25887.0,0.55446363]
[1693849514236,0.001,25888.0,25887.0,0.55374363]
[1693849514561,0.001,25888.0,25887.0,0.54846363]
[1693849514785,0.001,25888.0,25887.0,0.54690363]
[1693849515022,0.001,25888.0,25887.0,0.54660363]
[1693849515203,0.001,25888.0,25887.0,0.55146363]
[1693849515416,0.001,25888.0,25887.0,0.55266363]
[1693849515628,0.001,25888.0,25887.0,0.55050363]
[1693849515806,0.001,25888.0,25887.0,0.54666363]
[1693849516001,0.001,25888.0,25887.0,0.55008363]
[1693849516234,0.001,25888.0,25887.0,0.318574]
[1693849516525,0.001,25888.0,25887.0,0.314374]
[1693849516797,0.001,25888.0,25887.0,0.314254]
[1693849517006,0.001,25888.0,25887.0,0.314074]
[1693849517185,0.001,25888.0,25887.0,0.312154]
[1693849517433,0.001,25888.0,25887.0,0.312034]
[1693849517636,0.001,25888.0,25887.0,0.311314]
[1693849517793,0.001,25888.0,25887.0,0.311194]
[1693849517989,0.001,25888.0,25887.0,0.311014]
[1693849518189,0.001,25888.0,25887.0,0.309634]
[1693849518398,0.001,25888.0,25887.0,0.312094]
[1693849518598,0.001,25888.0,25887.0,0.313414]
[1693849518799,0.001,25888.0,25887.0,0.313654]
[1693849518980,0.001,25888.0,25887.0,0.70851927]
[1693849519197,0.001,25888.0,25887.0,0.70899927]
[1693849519357,0.001,25888.0,25887.0,0.71043927]
[1693849519555,0.001,25888.0,25887.0,0.71097927]
[1693849519933,0.001,25888.0,25887.0,0.70929927]
[1693849520123,0.001,25888.0,25887.0,0.70875927]
[1693849520436,0.001,25888.0,25887.0,0.70815927]
[1693849520637,0.001,25888.0,25887.0,0.70809927]
[1693849520842,0.001,25888.0,25887.0,0.70785927]
[1693849521046,0.001,25888.0,25887.0,0.70755927]
[1693849521190,0.001,25888.0,25887.0,0.70773927]
[1693849521376,0.001,25888.0,25887.0,0.71013927]
[1693849521578,0.001,25888.0,25887.0,0.71001927]
[1693849521819,0.001,25888.0,25887.0,0.70977927]
[1693849522026,0.001,25888.0,25887.0,0.70947927]
[1693849522228,0.001,25888.0,25887.0,0.70959927]
[1693849522411,0.001,25888.0,25887.0,0.70953927]
[1693849522622,0.001,25888.0,25887.0,0.70887927]
[1693849522828,0.001,25888.0,25887.0,0.70881927]
[1693849523051,0.001,25888.0,25887.0,0.70851927]
[1693849523272,0.001,25888.0,25887.0,0.70827927]
[1693849523601,0.001,25888.0,25887.0,0.70815927]
[1693849523714,0.001,25888.0,25887.0,0.70767927]
[1693849523916,0.001,25888.0,25887.0,0.70743927]
[1693849524187,0.001,25888.0,25887.0,0.70725927]
[1693849524391,0.001,25888.0,25887.0,0.70713927]
[1693849524593,0.001,25888.0,25887.0,0.70689927]
[1693849524791,0.001,25888.0,25887.0,0.70671927]
[1693849525018,0.001,25888.0,25887.0,0.70659927]
[1693849525211,0.001,25888.0,25887.0,0.70341927]
[1693849525437,0.001,25888.0,25887.0,0.70317927]
[1693849525644,0.001,25888.0,25887.0,0.70539927]
[1693849525884,0.001,25888.0,25887.0,0.70263927]
[1693849526145,0.001,25888.0,25887.0,0.70851927]
[1693849526403,0.001,25888.0,25887.0,0.70545927]
[1693849526643,0.001,25888.0,25887.0,0.70059927]
[1693849526816,0.001,25888.0,25887.0,0.70041927]
[1693849527018,0.001,25888.0,25887.0,0.69969927]
[1693849527161,0.001,25888.0,25887.0,0.69789927]
[1693849527357,0.001,25888.0,25887.0,0.83690786]
[1693849527605,0.001,25888.0,25887.0,0.69783927]
[1693849527820,0.001,25888.0,25887.0,0.69777927]
[1693849528025,0.001,25888.0,25887.0,0.69765927]
[1693849528322,0.001,25888.0,25887.0,0.69759927]
[1693849528523,0.001,25888.0,25887.0,0.69717927]
[1693849528727,0.001,25888.0,25887.0,0.69675927]
[1693849528949,0.001,25888.0,25887.0,0.69669927]
[1693849529140,0.001,25888.0,25887.0,0.69687927]
[1693849529386,0.001,25888.0,25887.0,0.69657927]
[1693849529558,0.001,25888.0,25887.0,0.69699927]
[1693849529761,0.001,25888.0,25887.0,0.69603927]
[1693849529974,0.001,25888.0,25887.0,0.88093727]
[1693849530196,0.001,25888.0,25887.0,0.93241727]
[1693849530403,0.001,25888.0,25887.0,1.64976361]
[1693849530611,0.001,25888.0,25887.0,1.64916361]
[1693849530814,0.19,25890.0,25887.0,1.64924361]
[1693849531023,0.19,25890.0,25888.0,1.31323935]
[1693849531225,0.19,25890.0,25889.0,0.38626]
[1693849531429,0.19,25890.0,25889.0,0.77290527]
[1693849531634,0.19,25890.0,25889.0,0.87268527]
[1693849531834,0.19,25890.0,25889.0,0.87148527]
[1693849532051,0.19,25890.0,25889.0,0.87190527]
[1693849532228,0.192,25890.0,25889.0,0.87196527]
[1693849532388,0.19,25890.0,25889.0,0.87178527]
[1693849532609,0.192,25890.0,25889.0,0.81841327]
[1693849533017,0.192,25890.0,25889.0,0.81793327]
[1693849533241,0.192,25890.0,25889.0,0.81799327]
[1693849533438,0.192,25890.0,25889.0,0.89524527]
[1693849533783,0.194,25890.0,25889.0,0.91550527]
[1693849534084,0.194,25890.0,25889.0,0.91556527]
[1693849534460,0.194,25890.0,25889.0,0.91508527]
[1693849534663,0.194,25890.0,25889.0,0.91514527]
[1693849535055,0.194,25890.0,25889.0,0.91538527]
[1693849535460,0.194,25890.0,25889.0,0.91586527]
[1693849535764,0.194,25890.0,25889.0,0.91568527]
[1693849536139,0.194,25890.0,25889.0,0.91574527]
[1693849536360,0.194,25890.0,25889.0,0.91568527]
[1693849536498,0.194,25890.0,25889.0,0.91526527]
[1693849536869,0.194,25890.0,25889.0,0.91862527]
[1693849537075,0.194,25890.0,25889.0,0.91352527]
[1693849537274,0.194,25890.0,25889.0,0.91358527]
[1693849537498,0.194,25890.0,25889.0,0.91274527]
[1693849537649,0.194,25890.0,25889.0,0.91286527]
[1693849537852,0.194,25890.0,25889.0,0.91292527]
[1693849538056,0.194,25890.0,25889.0,0.92084527]
[1693849538403,0.194,25890.0,25889.0,0.92066527]
[1693849538580,0.194,25890.0,25889.0,0.92060527]
[1693849538756,0.194,25890.0,25889.0,0.92072527]
[1693849539108,0.194,25890.0,25889.0,0.92078527]
[1693849539284,0.194,25890.0,25889.0,0.92168527]
[1693849539520,0.194,25890.0,25889.0,0.92174527]
[1693849539760,0.194,25890.0,25889.0,0.91682527]
[1693849539962,0.194,25890.0,25889.0,0.92264527]
[1693849540187,0.194,25890.0,25889.0,0.92054527]
[1693849540362,0.194,25890.0,25889.0,0.92066527]
[1693849540593,0.194,25890.0,25889.0,0.91946527]
[1693849540797,0.194,25890.0,25889.0,0.91952527]
[1693849540948,0.194,25890.0,25889.0,1.1449331]
[1693849541148,0.194,25890.0,25889.0,1.1380931]
[1693849541356,0.194,25890.0,25889.0,1.1344931]
[1693849541554,0.194,25890.0,25889.0,1.1338331]
[1693849541755,0.194,25890.0,25889.0,1.1340731]
[1693849541963,0.194,25890.0,25889.0,1.1354531]
[1693849542167,0.194,25890.0,25889.0,1.1347331]
[1693849542366,0.194,25890.0,25889.0,1.1348531]
[1693849542567,0.194,25890.0,25889.0,1.1349731]
[1693849542791,0.194,25890.0,25889.0,1.1350931]
[1693849542992,0.194,25890.0,25889.0,1.2429731]
[1693849543295,0.194,25890.0,25889.0,1.2432731]
[1693849543434,0.194,25890.0,25889.0,1.2437531]
[1693849543797,0.194,25890.0,25889.0,1.2440531]
[1693849543999,0.194,25890.0,25889.0,1.2442931]
[1693849544200,0.194,25890.0,25889.0,1.2481931]
[1693849544504,0.194,25890.0,25889.0,1.2601331]
[1693849544725,0.194,25890.0,25889.0,1.2614531]
[1693849545046,0.194,25890.0,25889.0,1.2613931]
[1693849545316,0.194,25890.0,25889.0,1.2605531]
[1693849545453,0.194,25890.0,25889.0,1.2607331]
[1693849545651,0.194,25890.0,25889.0,1.2604931]
[1693849546153,0.194,25890.0,25889.0,1.2606131]
[1693849546349,0.194,25890.0,25889.0,1.2604931]
[1693849546938,0.194,25890.0,25889.0,1.2698531]
[1693849547170,0.194,25890.0,25889.0,1.5829331]
[1693849547375,0.194,25890.0,25889.0,1.55864527]
[1693849547589,0.194,25890.0,25889.0,1.55108527]
[1693849547774,0.194,25890.0,25889.0,1.41890527]
[1693849548005,0.194,25890.0,25889.0,1.41878527]
[1693849548233,0.194,25890.0,25889.0,1.41830527]
[1693849548408,0.194,25890.0,25889.0,1.41872527]
[1693849548611,0.194,25890.0,25889.0,1.55060527]
[1693849548784,0.194,25890.0,25889.0,1.41620527]
[1693849548985,0.194,25890.0,25889.0,1.55024527]
[1693849549190,0.194,25890.0,25889.0,1.41866527]
[1693849549367,0.194,25890.0,25889.0,1.41854527]
[1693849549597,0.194,25890.0,25889.0,1.41644527]
[1693849549794,0.194,25890.0,25889.0,1.41632527]
[1693849549992,0.194,25890.0,25889.0,1.41644527]
[1693849550196,0.194,25890.0,25889.0,1.41632527]
[1693849550399,0.194,25890.0,25889.0,1.41776527]
[1693849550604,0.194,25890.0,25889.0,1.41764527]
[1693849550849,0.194,25890.0,25889.0,1.41728527]
[1693849551050,0.194,25890.0,25889.0,1.41710527]
[1693849551202,0.194,25890.0,25889.0,1.41698527]
[1693849551401,0.194,25890.0,25889.0,1.41932527]
[1693849551630,0.194,25890.0,25889.0,1.55912527]
[1693849551993,0.194,25890.0,25889.0,1.80024752]
[1693849552210,0.194,25890.0,25889.0,1.65912752]
[1693849552408,0.194,25890.0,25889.0,1.41398527]
[1693849552656,0.194,25890.0,25889.0,1.41356527]
[1693849552860,0.194,25890.0,25889.0,1.41338527]
[1693849553058,0.194,25890.0,25889.0,1.41332527]
[1693849553492,0.194,25890.0,25889.0,1.93213492]
[1693849553794,0.194,25890.0,25889.0,1.93195492]
[1693849553993,0.194,25890.0,25889.0,1.65456718]
[1693849554203,0.194,25890.0,25889.0,1.65510718]
[1693849554406,0.194,25890.0,25889.0,1.65534718]
[1693849554607,0.194,25890.0,25889.0,1.41344527]
[1693849555045,0.194,25890.0,25889.0,1.41326527]
[1693849555275,0.194,25890.0,25889.0,1.41308527]
[1693849555476,0.194,25890.0,25889.0,1.41458527]
[1693849555627,0.194,25890.0,25889.0,1.41584527]
[1693849555953,0.194,25890.0,25889.0,1.65708815]
[1693849556156,0.194,25890.0,25889.0,1.65516815]
[1693849556339,0.194,25890.0,25889.0,1.65036815]
[1693849556657,0.194,25890.0,25889.0,1.65246815]
[1693849556859,0.194,25890.0,25889.0,1.65234815]
[1693849557064,0.194,25890.0,25889.0,1.65252815]
[1693849557194,0.194,25890.0,25889.0,1.65270815]
[1693849557394,0.194,25890.0,25889.0,1.65342815]
[1693849557662,0.194,25890.0,25889.0,1.65492815]
[1693849557963,0.194,25890.0,25889.0,1.65510815]
[1693849558101,0.194,25890.0,25889.0,1.65600815]
[1693849558307,0.194,25890.0,25889.0,1.65738815]
[1693849558532,0.194,25890.0,25889.0,1.65774815]
[1693849558737,0.194,25890.0,25889.0,1.65762815]
[1693849558933,0.194,25890.0,25889.0,1.65750815]
[1693849559142,0.194,25890.0,25889.0,1.65744815]
[1693849559344,0.194,25890.0,25889.0,1.65588815]
[1693849559574,0.194,25890.0,25889.0,1.65816815]
[1693849559929,0.194,25890.0,25889.0,1.65600815]
[1693849560137,0.194,25890.0,25889.0,1.65708815]
[1693849560380,0.194,25890.0,25889.0,1.65996815]
[1693849560584,0.194,25890.0,25889.0,1.79280815]
[1693849560792,0.194,25890.0,25889.0,1.79292815]
[1693849561030,0.194,25890.0,25889.0,1.79496815]
[1693849561453,0.194,25890.0,25889.0,1.79532815]
[1693849561679,0.194,25890.0,25889.0,1.79448815]
[1693849562073,0.194,25890.0,25889.0,1.79196815]
[1693849562304,0.194,25890.0,25889.0,1.93807589]
[1693849562509,0.194,25890.0,25889.0,1.66062815]
[1693849562694,0.194,25890.0,25889.0,1.66080815]
[1693849562867,0.194,25890.0,25889.0,1.79064815]
[1693849563419,0.194,25890.0,25889.0,1.91659589]
[1693849563624,0.194,25890.0,25889.0,1.81144389]
[1693849563824,0.194,25890.0,25889.0,1.80904389]
[1693849564029,0.194,25890.0,25889.0,1.53105615]
[1693849564234,0.194,25890.0,25889.0,1.29083327]
[1693849564435,0.194,25890.0,25889.0,1.17899327]
[1693849564666,0.194,25890.0,25889.0,1.18271327]
[1693849564876,0.194,25890.0,25889.0,1.42780863]
[1693849565089,0.194,25890.0,25889.0,1.42810863]
[1693849565296,0.194,25890.0,25889.0,1.43020863]
[1693849565509,0.194,25890.0,25889.0,1.42918863]
[1693849565717,0.194,25890.0,25889.0,1.43944863]
[1693849565919,0.194,25890.0,25889.0,1.43962863]
[1693849566147,0.194,25890.0,25889.0,1.43968863]
[1693849566353,0.194,25890.0,25889.0,1.43962863]
[1693849566529,0.194,25890.0,25889.0,1.71389637]
[1693849566757,0.194,25890.0,25889.0,1.71161637]
[1693849566964,0.194,25890.0,25889.0,1.71359637]
[1693849567188,0.194,25890.0,25889.0,1.71131637]
[1693849567400,0.194,25890.0,25889.0,1.71167637]
[1693849567602,0.194,25890.0,25889.0,1.71233637]
[1693849567804,0.194,25890.0,25889.0,1.71173637]
[1693849568105,0.194,25890.0,25889.0,1.71239637]
[1693849568289,0.194,25890.0,25889.0,1.71197637]
[1693849568490,0.194,25890.0,25889.0,1.71323637]
[1693849568644,0.194,25890.0,25889.0,1.71335637]
[1693849568847,0.194,25890.0,25889.0,1.71251637]
[1693849569136,0.194,25890.0,25889.0,1.71281637]
[1693849569318,0.194,25890.0,25889.0,1.71293637]
[1693849569488,0.194,25890.0,25889.0,1.71563637]
[1693849569689,0.194,25890.0,25889.0,1.71605637]
[1693849569893,0.194,25890.0,25889.0,1.71809637]
[1693849570070,0.194,25890.0,25889.0,1.71653637]
[1693849570271,0.194,25890.0,25889.0,1.71575637]
[1693849570471,0.194,25890.0,25889.0,1.71503637]
[1693849570697,0.194,25890.0,25889.0,1.71587637]
[1693849570896,0.194,25890.0,25889.0,1.71581637]
[1693849571106,0.194,25890.0,25889.0,1.71587637]
[1693849571300,0.194,25890.0,25889.0,1.71599637]
[1693849571626,0.194,25890.0,25889.0,1.71863637]
[1693849571853,0.194,25890.0,25889.0,1.71881637]
[1693849572054,0.194,25890.0,25889.0,1.71893637]
[1693849572256,0.194,25890.0,25889.0,1.71887637]
[1693849572430,0.194,25890.0,25889.0,1.71911637]
[1693849572591,0.194,25890.0,25889.0,1.71989637]
[1693849572792,0.194,25890.0,25889.0,1.72133637]
[1693849572993,0.194,25890.0,25889.0,1.71953637]
[1693849573198,0.194,25890.0,25889.0,1.72139637]
[1693849573390,0.194,25890.0,25889.0,1.72247637]
[1693849573596,0.194,25890.0,25889.0,1.72283637]
[1693849573833,0.194,25890.0,25889.0,1.72319637]
[1693849574146,0.194,25890.0,25889.0,1.80044837]
[1693849574377,0.194,25890.0,25889.0,1.80746837]
[1693849574520,0.194,25890.0,25889.0,1.81370837]
[1693849574747,0.194,25890.0,25889.0,1.81400837]
[1693849574946,0.194,25890.0,25889.0,1.81412837]
[1693849575348,0.194,25890.0,25889.0,1.81400837]
[1693849575558,0.194,25890.0,25889.0,1.81322837]
[1693849575758,0.194,25890.0,25889.0,1.53812063]
[1693849575965,0.194,25890.0,25889.0,1.53710063]
[1693849576361,0.194,25890.0,25889.0,1.53668063]
[1693849576569,0.194,25890.0,25889.0,1.53584063]
[1693849576911,0.194,25890.0,25889.0,1.53524063]
[1693849577448,0.194,25890.0,25889.0,1.53728063]
[1693849577644,0.194,25890.0,25889.0,1.53734063]
[1693849577908,0.194,25890.0,25889.0,1.53728063]
[1693849578138,0.194,25890.0,25889.0,1.53776063]
[1693849578267,0.194,25890.0,25889.0,1.53620063]
[1693849578469,0.194,25890.0,25889.0,1.53434063]
[1693849578666,0.194,25890.0,25889.0,1.53566063]
[1693849579000,0.194,25890.0,25889.0,1.53476063]
[1693849579199,0.194,25890.0,25889.0,1.53548063]
[1693849579376,0.194,25890.0,25889.0,1.53578063]
[1693849579723,0.194,25890.0,25889.0,1.53572063]
[1693849580094,0.194,25890.0,25889.0,1.53716063]
[1693849580287,0.194,25890.0,25889.0,1.53668063]
[1693849580525,0.194,25890.0,25889.0,1.53638063]
[1693849580719,0.194,25890.0,25889.0,1.53626063]
[1693849580914,0.194,25890.0,25889.0,1.53572063]
[1693849581069,0.194,25890.0,25889.0,1.53620063]
[1693849581271,0.194,25890.0,25889.0,1.53434063]
[1693849582184,0.194,25890.0,25889.0,1.53476063]
[1693849582598,0.194,25890.0,25889.0,1.53506063]
[1693849582798,0.194,25890.0,25889.0,1.53518063]
[1693849583004,0.194,25890.0,25889.0,1.53908063]
[1693849583224,0.194,25890.0,25889.0,1.53890063]
[1693849583627,0.194,25890.0,25889.0,1.53866063]
[1693849583805,0.194,25890.0,25889.0,1.53674063]
[1693849583979,0.194,25890.0,25889.0,1.53608063]
[1693849584182,0.194,25890.0,25889.0,1.53680063]
[1693849584625,0.194,25890.0,25889.0,1.53620063]
[1693849584817,0.194,25890.0,25889.0,1.53572063]
[1693849585000,0.194,25890.0,25889.0,1.53512063]
[1693849585189,0.194,25890.0,25889.0,1.53614063]
[1693849585601,0.194,25890.0,25889.0,1.53500063]
[1693849585806,0.194,25890.0,25889.0,1.53464063]
[1693849586010,0.194,25890.0,25889.0,1.53590063]
[1693849586235,0.194,25890.0,25889.0,1.53584063]
[1693849586569,0.194,25890.0,25889.0,1.53578063]
[1693849586778,0.194,25890.0,25889.0,1.53440063]
[1693849586974,0.194,25890.0,25889.0,1.80710477]
[1693849587177,0.194,25890.0,25889.0,1.80308477]
[1693849587382,0.194,25890.0,25889.0,1.80230477]
[1693849587593,0.194,25890.0,25889.0,1.80200477]
[1693849588219,0.194,25890.0,25889.0,1.80146477]
[1693849588426,0.194,25890.0,25889.0,1.80152477]
[1693849588663,0.194,25890.0,25889.0,1.80158477]
[1693849588867,0.194,25890.0,25889.0,1.80248477]
[1693849589278,0.194,25890.0,25889.0,1.80254477]
[1693849589478,0.194,25890.0,25889.0,1.80260477]
[1693849589630,0.194,25890.0,25889.0,1.80272477]
[1693849589857,0.194,25890.0,25889.0,1.80236477]
[1693849590060,0.194,25890.0,25889.0,1.80278477]
[1693849590328,0.194,25890.0,25889.0,1.80284477]
[1693849590542,0.194,25890.0,25889.0,1.80188477]
[1693849590738,0.194,25890.0,25889.0,1.80176477]
[1693849590947,0.194,25890.0,25889.0,1.80926477]
[1693849591169,0.194,25890.0,25889.0,1.81442477]
[1693849591372,0.194,25890.0,25889.0,1.53770063]
[1693849591485,0.194,25890.0,25889.0,1.53722063]
[1693849591692,0.194,25890.0,25889.0,1.53776063]
[1693849591894,0.194,25890.0,25889.0,1.53746063]
[1693849592095,0.194,25890.0,25889.0,1.53800063]